Cogmind - Beta 15 @@@ ROGUE MODE // 2025.07.05 @ 07:22:50 Player: beans Result: Destroyed by S-10 Pest with Light Assault Rifle Performance ------------- Evolutions (0) 0 Regions Visited (2) 400 Robots Destroyed (23) 115 Value Destroyed (291) 291 Prototype IDs (1) 20 Alien Tech Used (0) 0 Bonus (0) 0 TOTAL SCORE: 826 Bonus ------- None Cogmind --------- Core Integrity 0/250 Matter 233/300 Energy 21/100 System Corruption 3% Temperature Cool (16) Movement Flying (110) Ox1 Location -10/Mines Parts ------- > --- POWER (1) -------- (None) > --- PROPULSION (2) --- Improved Flight Unit > --- UTILITY (2) ------ Signal Interpreter > --- WEAPON (2) ------- Light EM Pulse Cannon Light Cannon > --- INVENTORY (5) ---- EM Pulse Gun Peak State ------------ > --- POWER ------------ Light Ion Engine > --- PROPULSION ------- Improved Flight Unit Improved Flight Unit > --- UTILITY ---------- (None) > --- WEAPON ----------- Light EM Pulse Cannon Light EM Pulse Cannon > --- INVENTORY -------- EM Pulse Gun EM Pulse Gun [Rating: 11] Favorites ----------- Power Light Ion Engine Engine Light Ion Engine Propulsion Improved Flight Unit Treads Light Treads Flight Unit Improved Flight Unit Utility Signal Interpreter Processor Signal Interpreter Weapon Light Cannon Energy Gun EM Pulse Gun Energy Cannon Light EM Pulse Cannon Ballistic Cannon Light Cannon Build | -11 -10 -10 ------- Run | Yrd Mat Min Slots Evolved . | . . . Power . | . . . Propulsion . | . . . Utility . | . . . Weapon . | . . . Parts Attached 13 | 5 8 . Power 2 | 1 1 . Engine 2 | 1 1 . Core . | . . . Reactor . | . . . Propulsion 4 | 2 2 . Treads 2 | 2 . . Leg . | . . . Wheel . | . . . Hover . | . . . Flight 2 | . 2 . Utility 1 | . 1 . Device . | . . . Storage . | . . . Processor 1 | . 1 . Hackware . | . . . Protection . | . . . Artifact . | . . . Weapon 6 | 2 4 . Energy Gun 2 | 2 . . Energy Cannon 2 | . 2 . Ballistic Gun . | . . . Ballistic Cannon 2 | . 2 . Launcher . | . . . Special Weapon . | . . . Impact Weapon . | . . . Slashing Weapon . | . . . Piercing Weapon . | . . . Special Melee Weapon . | . . . Unidentified Prototypes 1 | . 1 . Parts Lost 5 | . 4 1 Power 1 | . 1 . Propulsion 1 | . 1 . Utility . | . . . Weapon 3 | . 2 1 Highest Loss Streak 3 | . 3 1 To Critical Strikes . | . . . Average Backups 1 | . 1 2 Power . | . . . Propulsion . | . . . Utility . | . . . Weapon 1 | . 1 2 Tool/Special . | . . . Unused Backups 1 | . 1 . Power . | . . . Propulsion 1 | . 1 . Utility . | . . . Weapon . | . . . Tool/Special . | . . . Average Slot Usage (%) 64 | . 65 57 Engine 6 | . 7 . Treads 6 | . 8 . Flight 15 | . 16 14 Processor 10 | . 9 14 Energy Gun 8 | . 9 . Energy Cannon 3 | . 3 1 Ballistic Cannon 12 | . 10 26 Peak Build Rating 11 | 5 11 7 Average Rating 6 | 4 7 6 On Entrance 3 | . 5 6 Naked Turns . | . . . Heaviest Build 9 | 7 9 6 Greatest Support 40 | 40 40 5 Greatest Overweight (x) 1 | . 1 1 Average Overweight (x) . | . . 1 Largest Inventory Capacity 5 | 5 5 5 Average Capacity 5 | 5 5 5 Most Carried 4 | 4 4 2 Average Carried 1 | . 1 1 Final Capacity 5 | 5 5 5 Final Carried 2 | . 2 1 Class Distribution -------------------- 100% | Mutant Dominant Class ---------------- Mutant | -10/Materials Mutant | -10/Mines Resources | -11 -10 -10 ----------- Run | Yrd Mat Min Matter Collected 478 | 250 193 35 Remotely . | . . . Salvage Created 576 | 105 424 47 Parts 58 | 6 43 9 Haulers Intercepted 2 | . 2 . Recyclers Shooed . | . . . Parts Field Recycled . | . . . Retrieved Matter . | . . . Parts Self-Destructed . | . . . Prevented . | . . . Kills | -11 -10 -10 ------- Run | Yrd Mat Min Combat Hostiles Destroyed 10 | . 9 1 Guns 1 | . 1 . Cannons 5 | . 4 1 AOE 3 | . 3 . Classes Destroyed 9 | 2 7 . Worker 3 | . 2 1 Builder 2 | . 2 . Tunneler 3 | 1 1 1 Hauler 2 | . 2 . Recycler 1 | 1 . . Operator 1 | . 1 . Watcher 1 | . 1 . Swarmer 7 | . 6 1 Grunt 3 | . 3 . Best Kill Streak 4 | 2 4 2 Combat Bots Only 3 | . 3 1 Max Kills in Single Turn 2 | 1 2 1 Gunslinging . | . . . Exploded 2 | . 2 . Melee . | . . . Uniques/NPCs Destroyed . | . . . Combat | -11 -10 -10 -------- Run | Yrd Mat Min Hostile Shots Fired 95 | . 71 24 Missed 29 | . 23 6 Hits 66 | . 48 18 Projectile 66 | . 48 18 Critical Strikes 1 | . . 1 Damage Taken 743 | . 592 151 Core 253 | . 200 53 Absorbed by Shields . | . . . Core Remaining (%) 100 | 100 . . Volleys Fired 63 | 5 49 9 Largest 2 | 2 2 2 Hottest 96 | 80 96 86 Shots Fired 98 | 10 71 17 Gun 25 | 10 15 . Cannon 73 | . 56 17 Launcher . | . . . Special . | . . . Kinetic 46 | . 31 15 Thermal . | . . . Explosive . | . . . Electromagnetic 52 | 10 40 2 Robot Hit Streak 5 | 2 4 5 Robot Miss Streak 7 | 3 7 7 Penetration Max . | . . . Secondary Targets . | . . . Shots Hit Robots 38 | 5 28 5 Core Hits 22 | 2 17 3 Critical Kills . | . . . Critical Parts Destroyed . | . . . Critical Strikes 1 | . 1 . Corrupt 1 | . 1 . Melee Attacks . | . . . Impact . | . . . Slashing . | . . . Piercing . | . . . Sneak Attacks . | . . . Combat Hostiles . | . . . Follow-up Attacks . | . . . Damage Inflicted 1132 | 67 971 94 Guns 143 | 67 76 . Cannons 565 | . 471 94 Explosions 424 | . 424 . Melee . | . . . Ramming . | . . . Kinetic 246 | . 152 94 Thermal 112 | . 112 . Explosive 312 | . 312 . Electromagnetic 462 | 67 395 . Impact . | . . . Slashing . | . . . Piercing . | . . . Highest Corruption 3 | . 3 3 Average Corruption 2 | . 2 3 Corruption Purged . | . . . Corruption Blocked . | . . . Effects 11 | . 10 1 Message Errors 2 | . 2 . Matter Fused 2 | . 2 . Heat Flow Errors 3 | . 2 1 Data Loss (minor) 2 | . 2 . Misfires 2 | . 2 . Overload Shots . | . . . Overflow Damage 77 | . 77 . Projectiles . | . . . Explosions 77 | . 77 . Melee . | . . . Knockbacks 1 | . . 1 Impact . | . . . Kinetic 1 | . . 1 Secondary . | . . . Self-Inflicted Damage 84 | . 84 . Shots 2 | . 2 . Rammed . | . . . Targets Rammed . | . . . Kicked . | . . . Crushed . | . . . Highest Temperature 340 | 54 340 144 Average Temperature 74 | 19 84 51 Received Heat Transfer 201 | . 201 . Siege Activations . | . . . Martial Activations . | . . . Shielding Activations . | . . . Robots Disrupted . | . . . Combat Hostiles . | . . . Robots Corrupted 1 | . 1 . Combat Hostiles 1 | . 1 . Parts Fried 5 | . 5 . Impact Corruptions . | . . . Robots Melted . | . . . Combat Hostiles . | . . . Parts Melted . | . . . Heat Transferred 150 | . 150 . Parts Sabotaged . | . . . Parts Stolen . | . . . Parts Stripped . | . . . Power Chain Reactions 2 | . 2 . Alert | -11 -10 -10 ------- Run | Yrd Mat Min Maximum Alert Level . | . . . Low Security (%) 100 | 100 100 100 Level 1 . | . . . Level 2 . | . . . Level 3 . | . . . Level 4 . | . . . Level 5 . | . . . High Security . | . . . Max Security . | . . . Peak Influence 152 | 5 152 41 Initial 36 | . . 36 Average 60 | . 75 27 Influence Increases 413 | 10 363 40 Destroy 0b10 Robot/C 200 | . 180 20 Destroy 0b10 Robot/NC 65 | 10 45 10 Destroy Leader 46 | . 36 10 Disable Machine 45 | . 45 . Destroy Structure 42 | . 42 . Lose Combat Pursuer 15 | . 15 . Influence Decreases 397 | 10 270 117 Entered New Map 57 | . . 57 Time Decay 290 | 10 230 50 Lost Part 50 | . 40 10 Squads Dispatched 1 | . 1 . Investigation . | . . . Extermination . | . . . Reinforcement 1 | . 1 . Assault . | . . . Garrison . | . . . Intercept . | . . . Searches Triggered . | . . . Construction Impeded . | . . . Haulers Reinforced . | . . . Active Scanning Responses . | . . . Cargo Convoy Interrupts . | . . . Stealth | -11 -10 -10 --------- Run | Yrd Mat Min Distress Signals . | . . . Communications Jammed . | . . . Distress Signals . | . . . Times Spotted 18 | . 15 3 Peak Tracking Total 4 | . 4 3 Tactical Retreats 1 | . 1 . Traps | -11 -10 -10 ------- Run | Yrd Mat Min Traps Triggered 2 | . 2 . Indirectly . | . . . Trap Hack Attempts . | . . . Triggered . | . . . Disarmed . | . . . Reprogrammed . | . . . Reused . | . . . Traps Extracted . | . . . Installed . | . . . Triggered . | . . . Machines | -11 -10 -10 ---------- Run | Yrd Mat Min Machines Disabled 3 | . 3 . Max in Single Turn 2 | . 2 . Machines Repaired . | . . . Machines Dismantled . | . . . Machines Sabotaged . | . . . Overloaded Fab Kills . | . . . Hacking | -11 -10 -10 --------- Run | Yrd Mat Min Machines Accessed . | . . . Terminals . | . . . Fabricators . | . . . Repair Stations . | . . . Recycling Units . | . . . Scanalyzers . | . . . Garrison Access . | . . . Total Hacks . | . . . Successful . | . . . Failed . | . . . Catastrophic . | . . . Database Lockouts . | . . . Manual . | . . . Terminals . | . . . Fabricators . | . . . Repair Stations . | . . . Recycling Units . | . . . Scanalyzers . | . . . Garrison Access . | . . . Terminal Hacks . | . . . Fabricator Hacks . | . . . Repair Station Hacks . | . . . Recycling Unit Hacks . | . . . Scanalyzer . | . . . Garrison Access Hacks . | . . . Unauthorized Hacks . | . . . Terminals . | . . . Fabricators . | . . . Repair Stations . | . . . Recycling Units . | . . . Scanalyzers . | . . . Garrison Access . | . . . Data Cores Recovered . | . . . Used . | . . . Hacking Detections . | . . . Full Trace Events . | . . . Feedback Events . | . . . Feedback Blocked . | . . . Robot Schematics Acquired . | . . . Robots Built . | . . . Authchips . | . . . Time . | . . . Total Robot Build Rating . | . . . Part Schematics Acquired . | . . . Parts Built . | . . . Authchips . | . . . Time . | . . . Total Part Build Rating . | . . . Parts Repaired . | . . . Time . | . . . Parts Recycled . | . . . Recycled Matter . | . . . Retrieved Matter . | . . . Retrieved Components . | . . . Parts Scanalyzed . | . . . Part Schematics Acquired . | . . . Parts Damaged . | . . . Bothacking | -11 -10 -10 ------------ Run | Yrd Mat Min Used RIF Installer . | . . . Robots Hacked . | . . . Non-combat . | . . . Combat . | . . . Robot Hacks Applied . | . . . Relay Couplers Released . | . . . Fabnet Peak Effective % . | . . . Robots Rewired . | . . . Allies Hacked . | . . . Hacks Repelled . | . . . Allies | -11 -10 -10 -------- Run | Yrd Mat Min Total Allies . | . . . Largest Group . | . . . Highest-Rated Group . | . . . Highest-Rated Ally . | . . . Total Orders . | . . . Ally Attacks . | . . . Total Damage . | . . . Kills . | . . . Allies Corrupted . | . . . Allies Melted . | . . . Intel | -11 -10 -10 ------- Run | Yrd Mat Min Active Infowar (turns) . | . . . Robot Analysis Total . | . . . Derelict Logs Recovered . | . . . Drone Launches . | . . . Drone Recoveries . | . . . Exploration | -11 -10 -10 ------------- Run | Yrd Mat Min Turns Passed 779 | 90 588 101 Spaces Moved 606 | 42 495 69 Core 12 | 12 . . Treads 123 | 30 93 . Legs . | . . . Wheels . | . . . Hover . | . . . Flight 471 | . 402 69 Fastest Speed 37 | 50 37 110 Average Speed 88 | 128 81 110 Slowest Speed 160 | 160 160 110 Overloaded Moves . | . . . Propulsion Burnouts . | . . . Robots Hopped . | . . . Potential Cave-ins . | . . . Cave-ins Triggered . | . . . Exploration Rate (%) 35 | 4 67 36 Regions Visited 2 Branch Regions 1 Pre-discovered Areas . | . . . Known Exits Taken 1 | . 1 . Unknown Exits Taken 1 | 1 . . Scrap Searched . | . . . Spaces Dug . | . . . Terrain Destroyed 43 | . 43 . Melee . | . . . Projectile . | . . . AOE 43 | . 43 . Terrain Rammed . | . . . Walls Destroyed . | . . . Machines Disabled . | . . . Actions | -11 -10 -10 --------- Run | Yrd Mat Min Total 757 | 68 610 79 Wait 54 | 12 42 . Move 604 | 41 494 69 Hop . | . . . Pick Up 14 | 5 9 . Fast Attach . | . . . Attach 11 | 5 5 1 Detach 2 | . 2 . Swap 5 | . 5 . Drop 4 | . 4 . Fire 63 | 5 49 9 Melee . | . . . Ram . | . . . Kick . | . . . Crush . | . . . Escape Stasis . | . . . Rewire . | . . . Trap . | . . . Miscellaneous . | . . . Route ------- -11/Scrapyard -10/Materials (discovered 3 exits: [*Mat x2] / *Min) -10/Mines (discovered 1 exit: [*Mat]) History --------- Turn | Location | Event 4 | -11/Scrapyard | Discovered new exit (range 15) 91 | -11/Scrapyard | Entered Materials 111 | -10/Materials | Discovered new exit (range 15) 215 | -10/Materials | Discovered new exit (range 8) 303 | -10/Materials | Build established: Mutant 372 | -10/Materials | Identified exit to Mines 417 | -10/Materials | Core integrity fell below 50% 455 | -10/Materials | Lost 3 parts (1p2w) 645 | -10/Materials | Discovered new exit (range 7) 679 | -10/Materials | Entered Mines 745 | -10/Mines | Discovered new exit (range 14) 760 | -10/Mines | Core integrity fell below 20% 780 | -10/Mines | Destroyed by S-10 Pest with Light Assault Rifle Last Messages --------------- Acquired 16 matter. U-05 Engineer destroyed. Acquired 28 matter. Acquired 24 matter. LOCATION=MINES GOAL=ESCAPE Something is scanning the area. T-07 Excavator destroyed. Acquired 26 matter. Acquired 1 matter. System corrupted: Heat flow error (+167). K-01 Serf collects debris. K-01 Serf destroyed. Acquired 8 matter. K-01 Serf collects debris. EXIT=FOUND S-10 Pest destroyed. S-10 Pest knocked back. Lgt. Cannon destroyed. K-01 Serf collects debris. Map ----- +----------------------------------------------------+ | ???????????????## ????????# #???# #???????????? | | ????????????????# ????????# #???# #???????????? | | ????????????????# ???????? ???# #???????????? | | ????????????????# ??????? """ ???# #???????????? | | ????????????????# ??????? """ #??# #???????????? | | ????????????????# ?????????""" #??# #???????????? | | ???????????????? ???????????? #??# ###?????????? | | ????????????????? ????????????##??# ##????????? | | ?????????????????????????????????## ### #????? | | ????????????????????????????????## #????? | | ??????????????????????????####?## ######????? | | ?????????????????????????## ### ##?????????? | | ?????????????????????????# ###??????????? | | ????????????????# ???????# ##????????????? | | ????????????????# ??????# ##????????????? | | ????????????????? #?????# #????????????? | | ????????????????? ?????# #????????????? | | ?????????????????"" ????# #????????????? | | ????????????????""" #???# ##????????????? | | ????????????# ?""" #??## # ####?????????????? | | ????????????# """ ???# ## #????????????????? | | ????????????# ??# ## #????????????????? | | ?????????????# #?# ## #????????????????? | | ????????????????? ## ## #????????????????? | | ????????????????????# # ## #????????????????? | | ?????????????????????# %@ k #????????????????? | | ?????????????????????# %#### #????????????????? | | ????????????????????# #??# ???????????????? | | ?????????????????? #?? ?????????????? | | ?????????????????# s ??